[Event "January 2 Early 2024"]
[Site "https://www.chess.com"]
[Date "2024.01.02"]
[Round "1"]
[White "Molina, Roberto Junio Brito"]
[Black "Zhuk, Valeriy"]
[Result "1-0"]
[Board "117"]
[TimeControl "180+1"]
[WhiteFideId "2109450"]
[BlackFideId "24151254"]
[WhiteElo "2803"]
[BlackElo "2414"]
[WhiteTeam "BRA"]
[BlackTeam "RUS"]
[WhiteClock "0:00:29"]
[BlackClock "0:00:00"]

1. d4 {[%clk 0:03:00]}  Nf6 {[%clk 0:02:59]} 2. Nf3 {[%clk 0:02:59]}  e6 {[%clk 0:02:59]} 3. e3 {[%clk 0:03:00]}  b6 {[%clk 0:02:58]} 4. Bd3 {[%clk 0:03:00]}  Bb7 {[%clk 0:02:58]} 5. Qe2 {[%clk 0:03:00]}  d5 {[%clk 0:02:54]} 6. Nbd2 {[%clk 0:03:00]}  c5 {[%clk 0:02:54]} 7. c3 {[%clk 0:03:00]}  Nc6 {[%clk 0:02:48]} 8. O-O {[%clk 0:02:59]}  Be7 {[%clk 0:02:46]} 9. dxc5 {[%clk 0:02:59]}  bxc5 {[%clk 0:02:43]} 10. e4 {[%clk 0:02:59]}  O-O {[%clk 0:02:39]} 11. b3 {[%clk 0:02:59]}  a5 {[%clk 0:02:13]} 12. Bb2 {[%clk 0:02:57]}  a4 {[%clk 0:02:12]} 13. Rad1 {[%clk 0:02:53]}  a3 {[%clk 0:02:11]} 14. Bc1 {[%clk 0:02:42]}  Re8 {[%clk 0:02:08]} 15. Rfe1 {[%clk 0:02:40]}  Qa5 {[%clk 0:02:03]} 16. e5 {[%clk 0:02:39]}  Nd7 {[%clk 0:02:02]} 17. Nb1 {[%clk 0:02:39]}  Ba6 {[%clk 0:02:00]} 18. Bxa6 {[%clk 0:02:32]}  Qxa6 {[%clk 0:02:01]} 19. c4 {[%clk 0:02:22]}  Nb6 {[%clk 0:01:56]} 20. cxd5 {[%clk 0:02:20]}  Qxe2 {[%clk 0:01:47]} 21. Rxe2 {[%clk 0:02:21]}  Nxd5 {[%clk 0:01:48]} 22. Bd2 {[%clk 0:02:10]}  Ncb4 {[%clk 0:01:46]} 23. Nc3 {[%clk 0:02:07]}  Red8 {[%clk 0:01:38]} 24. Nxd5 {[%clk 0:02:05]}  Rxd5 {[%clk 0:01:37]} 25. Ra1 {[%clk 0:02:04]}  Rad8 {[%clk 0:01:20]} 26. Bxb4 {[%clk 0:02:04]}  cxb4 {[%clk 0:01:18]} 27. Kf1 {[%clk 0:02:02]}  f6 {[%clk 0:01:15]} 28. Rc1 {[%clk 0:01:53]}  fxe5 {[%clk 0:01:14]} 29. Nxe5 {[%clk 0:01:51]}  Bf6 {[%clk 0:01:13]} 30. Nc4 {[%clk 0:01:50]}  Kf7 {[%clk 0:01:10]} 31. g3 {[%clk 0:01:42]}  Rd1+ {[%clk 0:01:02]} 32. Rxd1 {[%clk 0:01:39]}  Rxd1+ {[%clk 0:01:03]} 33. Re1 {[%clk 0:01:40]}  Rd3 {[%clk 0:01:00]} 34. Ke2 {[%clk 0:01:36]}  Rc3 {[%clk 0:01:00]} 35. Rd1 {[%clk 0:01:34]}  h5 {[%clk 0:00:55]} 36. Rd3 {[%clk 0:01:27]}  Rc2+ {[%clk 0:00:53]} 37. Rd2 {[%clk 0:01:27]}  Rc3 {[%clk 0:00:53]} 38. Kd1 {[%clk 0:01:19]}  h4 {[%clk 0:00:53]} 39. Rc2 {[%clk 0:01:19]}  hxg3 {[%clk 0:00:43]} 40. Rxc3 {[%clk 0:01:16]}  Bxc3 {[%clk 0:00:43]} 41. hxg3 {[%clk 0:01:16]}  g5 {[%clk 0:00:40]} 42. g4 {[%clk 0:01:14]}  Kf6 {[%clk 0:00:29]} 43. Ke2 {[%clk 0:01:11]}  Bd4 {[%clk 0:00:28]} 44. f3 {[%clk 0:01:11]}  Bc3 {[%clk 0:00:29]} 45. Kd3 {[%clk 0:01:10]}  Be1 {[%clk 0:00:28]} 46. Ke4 {[%clk 0:01:08]}  Bc3 {[%clk 0:00:28]} 47. Ne3 {[%clk 0:01:02]}  Ke7 {[%clk 0:00:27]} 48. Nf1 {[%clk 0:00:57]}  Kd6 {[%clk 0:00:27]} 49. Ng3 {[%clk 0:00:57]}  Kc5 {[%clk 0:00:26]} 50. Kd3 {[%clk 0:00:53]}  Kd5 {[%clk 0:00:25]} 51. Ne4 {[%clk 0:00:52]}  Be1 {[%clk 0:00:15]} 52. Nxg5 {[%clk 0:00:50]}  Ke5 {[%clk 0:00:15]} 53. Ke3 {[%clk 0:00:42]}  Bh4 {[%clk 0:00:14]} 54. f4+ {[%clk 0:00:41]}  Kd5 {[%clk 0:00:13]} 55. Nf3 {[%clk 0:00:40]}  Bf6 {[%clk 0:00:13]} 56. Kd3 {[%clk 0:00:38]}  Bb2 {[%clk 0:00:12]} 57. Nd2 {[%clk 0:00:38]}  Bc1 {[%clk 0:00:10]} 58. Ke3 {[%clk 0:00:34]}  e5 {[%clk 0:00:10]} 59. f5 {[%clk 0:00:30]}  e4 {[%clk 0:00:10]} 60. g5 {[%clk 0:00:29]}  Ke5 {[%clk 0:00:10]} 61. f6 {[%clk 0:00:29]}  Ke6 {[%clk 0:00:09]} 62. Ke2 {[%clk 0:00:30]}  e3 {[%clk 0:00:02]} 63. Kxe3 {[%clk 0:00:29]}  Kf7 {[%clk 0:00:03]} 64. Kd3 {[%clk 0:00:29]}  Kg6 {[%clk 0:00:00]} 65. Ne4 {[%clk 0:00:29]} 1-0

[Event "January 2 Early 2024"]
[Site "https://www.chess.com"]
[Date "2024.01.02"]
[Round "1"]
[White "Aadit Bhatia"]
[Black "Anuj Shrivatri"]
[Result "0-1"]
[Board "118"]
[TimeControl "180+1"]
[WhiteFideId "25088955"]
[BlackFideId "35070924"]
[WhiteElo "2413"]
[BlackElo "2801"]
[WhiteTeam "IND"]
[BlackTeam "IND"]
[WhiteClock "0:01:21"]
[BlackClock "0:01:26"]

1. b3 {[%clk 0:03:00]}  d5 {[%clk 0:02:56]} 2. Bb2 {[%clk 0:03:01]}  Nf6 {[%clk 0:02:47]} 3. e3 {[%clk 0:03:01]}  Bf5 {[%clk 0:02:37]} 4. c4 {[%clk 0:03:01]}  e6 {[%clk 0:02:35]} 5. Nc3 {[%clk 0:03:01]}  c6 {[%clk 0:02:35]} 6. Nf3 {[%clk 0:03:02]}  Nbd7 {[%clk 0:02:35]} 7. g3 {[%clk 0:03:00]}  Nc5 {[%clk 0:02:25]} 8. d4 {[%clk 0:02:59]}  Nce4 {[%clk 0:02:22]} 9. Nd2 {[%clk 0:02:32]}  Bb4 {[%clk 0:02:12]} 10. Ncxe4 {[%clk 0:01:35]}  Nxe4 {[%clk 0:01:46]} 11. Bc1 {[%clk 0:01:27]}  Bc3 {[%clk 0:01:45]} 12. Rb1 {[%clk 0:01:27]}  Nxd2 {[%clk 0:01:27]} 13. Bxd2 {[%clk 0:01:27]}  Bxd2+ {[%clk 0:01:27]} 14. Kxd2 {[%clk 0:01:28]}  Qa5+ {[%clk 0:01:27]} 15. Kc1 {[%clk 0:01:21]}  Qc3+ {[%clk 0:01:26]} 0-1

[Event "January 2 Early 2024"]
[Site "https://www.chess.com"]
[Date "2024.01.02"]
[Round "1"]
[White "Wagh Suyog"]
[Black "Peczely, Sebastian Zsombor"]
[Result "0-1"]
[Board "119"]
[TimeControl "180+1"]
[WhiteFideId "25071688"]
[BlackFideId "750964"]
[WhiteElo "2801"]
[BlackElo "2413"]
[WhiteTeam "IND"]
[BlackTeam "HUN"]
[WhiteClock "0:00:00"]
[BlackClock "0:00:05"]

1. c4 {[%clk 0:03:00]}  c5 {[%clk 0:02:52]} 2. Nf3 {[%clk 0:03:00]}  Nc6 {[%clk 0:02:52]} 3. Nc3 {[%clk 0:03:00]}  g6 {[%clk 0:02:46]} 4. e3 {[%clk 0:02:57]}  d6 {[%clk 0:02:39]} 5. d4 {[%clk 0:02:55]}  Bg4 {[%clk 0:02:32]} 6. Be2 {[%clk 0:02:19]}  Bg7 {[%clk 0:02:32]} 7. O-O {[%clk 0:02:13]}  Bxf3 {[%clk 0:02:12]} 8. Bxf3 {[%clk 0:02:13]}  cxd4 {[%clk 0:02:13]} 9. exd4 {[%clk 0:02:13]}  Nxd4 {[%clk 0:02:12]} 10. Bxb7 {[%clk 0:02:13]}  Rb8 {[%clk 0:02:12]} 11. Be4 {[%clk 0:01:59]}  f5 {[%clk 0:01:53]} 12. Bd5 {[%clk 0:01:52]}  e6 {[%clk 0:01:51]} 13. Be3 {[%clk 0:01:43]}  e5 {[%clk 0:01:26]} 14. Bxd4 {[%clk 0:01:43]}  exd4 {[%clk 0:01:26]} 15. Qa4+ {[%clk 0:01:40]}  Kf8 {[%clk 0:01:24]} 16. Qxa7 {[%clk 0:01:38]}  Ne7 {[%clk 0:01:22]} 17. Rfe1 {[%clk 0:01:30]}  Bf6 {[%clk 0:00:49]} 18. Re6 {[%clk 0:01:26]}  Kg7 {[%clk 0:00:35]} 19. Rae1 {[%clk 0:01:08]}  dxc3 {[%clk 0:00:33]} 20. Rxe7+ {[%clk 0:00:40]}  Kh6 {[%clk 0:00:12]} 21. Qe3+ {[%clk 0:00:34]}  g5 {[%clk 0:00:12]} 22. Qh3+ {[%clk 0:00:08]}  Kg6 {[%clk 0:00:13]} 23. R7e6 {[%clk 0:00:08]}  cxb2 {[%clk 0:00:12]} 24. g4 {[%clk 0:00:08]}  b1=Q {[%clk 0:00:11]} 25. Qh5+ {[%clk 0:00:06]}  Kg7 {[%clk 0:00:11]} 26. Rxb1 {[%clk 0:00:06]}  Rxb1+ {[%clk 0:00:10]} 27. Kg2 {[%clk 0:00:07]}  fxg4 {[%clk 0:00:06]} 28. Re2 {[%clk 0:00:06]}  Rb6 {[%clk 0:00:05]} 29. Qf7+ {[%clk 0:00:06]}  Kh6 {[%clk 0:00:06]} 30. h4 {[%clk 0:00:05]}  Rf8 {[%clk 0:00:06]} 31. hxg5+ {[%clk 0:00:04]}  Kxg5 {[%clk 0:00:05]} 32. Qxh7 {[%clk 0:00:03]}  Rh8 {[%clk 0:00:06]} 33. Qe4 {[%clk 0:00:02]}  Be5 {[%clk 0:00:06]} 34. Qe3+ {[%clk 0:00:03]}  Kf6 {[%clk 0:00:05]} 35. Qxb6 {[%clk 0:00:00]}  Qxb6 {[%clk 0:00:05]} 0-1

[Event "January 2 Early 2024"]
[Site "https://www.chess.com"]
[Date "2024.01.02"]
[Round "1"]
[White "Marcziter, Dmitrii"]
[Black "Bologan, Victor"]
[Result "0-1"]
[Board "120"]
[TimeControl "180+1"]
[WhiteFideId "13900765"]
[BlackFideId "13900048"]
[WhiteElo "2410"]
[BlackElo "2800"]
[WhiteTeam "GER"]
[BlackTeam "MDA"]
[WhiteClock "0:00:36"]
[BlackClock "0:02:00"]

1. e4 {[%clk 0:03:00]}  c5 {[%clk 0:02:59]} 2. Nc3 {[%clk 0:02:55]}  d6 {[%clk 0:02:59]} 3. f4 {[%clk 0:02:54]}  e6 {[%clk 0:02:59]} 4. Nf3 {[%clk 0:02:53]}  Nf6 {[%clk 0:02:59]} 5. d3 {[%clk 0:02:52]}  Nc6 {[%clk 0:02:59]} 6. g3 {[%clk 0:02:52]}  Rb8 {[%clk 0:02:58]} 7. a4 {[%clk 0:02:49]}  a6 {[%clk 0:02:58]} 8. Bg2 {[%clk 0:02:49]}  b5 {[%clk 0:02:58]} 9. axb5 {[%clk 0:02:49]}  axb5 {[%clk 0:02:58]} 10. O-O {[%clk 0:02:49]}  b4 {[%clk 0:02:58]} 11. Ne2 {[%clk 0:02:49]}  Be7 {[%clk 0:02:57]} 12. h3 {[%clk 0:02:49]}  O-O {[%clk 0:02:57]} 13. g4 {[%clk 0:02:49]}  d5 {[%clk 0:02:57]} 14. e5 {[%clk 0:02:46]}  Nd7 {[%clk 0:02:56]} 15. Be3 {[%clk 0:02:39]}  d4 {[%clk 0:02:52]} 16. Bf2 {[%clk 0:02:37]}  b3 {[%clk 0:02:52]} 17. c3 {[%clk 0:02:27]}  dxc3 {[%clk 0:02:52]} 18. Nxc3 {[%clk 0:02:24]}  Nb4 {[%clk 0:02:46]} 19. Ne4 {[%clk 0:01:55]}  Ba6 {[%clk 0:02:39]} 20. Ne1 {[%clk 0:01:55]}  c4 {[%clk 0:02:37]} 21. d4 {[%clk 0:01:40]}  Bb7 {[%clk 0:02:35]} 22. Qe2 {[%clk 0:01:35]}  Nb6 {[%clk 0:02:29]} 23. Rd1 {[%clk 0:01:22]}  N6d5 {[%clk 0:02:28]} 24. Bg3 {[%clk 0:01:19]}  Ba6 {[%clk 0:02:26]} 25. Qd2 {[%clk 0:01:11]}  Nc2 {[%clk 0:02:20]} 26. Nxc2 {[%clk 0:01:07]}  bxc2 {[%clk 0:02:19]} 27. Ra1 {[%clk 0:01:05]}  Qb6 {[%clk 0:02:14]} 28. Nc5 {[%clk 0:01:02]}  Bxc5 {[%clk 0:02:12]} 29. dxc5 {[%clk 0:01:02]}  Qxc5+ {[%clk 0:02:11]} 30. Bf2 {[%clk 0:01:03]}  c3 {[%clk 0:02:05]} 31. bxc3 {[%clk 0:00:59]}  Qxc3 {[%clk 0:02:04]} 32. Qc1 {[%clk 0:00:42]}  Bxf1 {[%clk 0:02:02]} 33. Bxf1 {[%clk 0:00:41]}  Qxa1 {[%clk 0:02:00]} 34. Qxa1 {[%clk 0:00:36]}  Rb1 {[%clk 0:02:00]} 0-1

[Event "January 2 Early 2024"]
[Site "https://www.chess.com"]
[Date "2024.01.02"]
[Round "1"]
[White "Holt, Conrad"]
[Black "Garrido, Denis"]
[Result "1-0"]
[Board "121"]
[TimeControl "180+1"]
[WhiteFideId "2034387"]
[BlackFideId "601217"]
[WhiteElo "2793"]
[BlackElo "2409"]
[WhiteTeam "USA"]
[BlackTeam "FRA"]
[WhiteClock "0:00:58"]
[BlackClock "0:00:09"]

1. d4 {[%clk 0:03:00]}  Nf6 {[%clk 0:02:57]} 2. c4 {[%clk 0:03:00]}  c5 {[%clk 0:02:57]} 3. d5 {[%clk 0:03:00]}  d6 {[%clk 0:02:57]} 4. Nc3 {[%clk 0:02:59]}  g6 {[%clk 0:02:58]} 5. e4 {[%clk 0:03:00]}  Bg7 {[%clk 0:02:58]} 6. Nf3 {[%clk 0:02:58]}  O-O {[%clk 0:02:58]} 7. h3 {[%clk 0:02:58]}  e6 {[%clk 0:02:58]} 8. Bd3 {[%clk 0:02:58]}  Na6 {[%clk 0:02:59]} 9. O-O {[%clk 0:02:57]}  Nc7 {[%clk 0:02:59]} 10. Re1 {[%clk 0:02:54]}  e5 {[%clk 0:02:58]} 11. Bg5 {[%clk 0:02:50]}  h6 {[%clk 0:02:50]} 12. Be3 {[%clk 0:02:50]}  Kh7 {[%clk 0:02:30]} 13. g4 {[%clk 0:02:44]}  Ng8 {[%clk 0:02:21]} 14. Kg2 {[%clk 0:02:41]}  a6 {[%clk 0:02:16]} 15. a3 {[%clk 0:02:33]}  b5 {[%clk 0:02:13]} 16. b3 {[%clk 0:02:17]}  Rb8 {[%clk 0:02:06]} 17. Qc2 {[%clk 0:02:16]}  b4 {[%clk 0:01:35]} 18. axb4 {[%clk 0:02:15]}  Rxb4 {[%clk 0:01:34]} 19. Bd2 {[%clk 0:02:12]}  Rb7 {[%clk 0:01:26]} 20. Ne2 {[%clk 0:02:09]}  Ne8 {[%clk 0:01:24]} 21. Ng3 {[%clk 0:02:10]}  Ne7 {[%clk 0:01:17]} 22. Rxa6 {[%clk 0:02:04]}  Rxb3 {[%clk 0:01:08]} 23. Rxd6 {[%clk 0:02:03]}  Nxd6 {[%clk 0:01:05]} 24. Qxb3 {[%clk 0:02:02]}  f5 {[%clk 0:01:06]} 25. exf5 {[%clk 0:02:00]}  gxf5 {[%clk 0:01:05]} 26. Nxe5 {[%clk 0:02:01]}  Kg8 {[%clk 0:01:02]} 27. f4 {[%clk 0:01:48]}  fxg4 {[%clk 0:01:01]} 28. hxg4 {[%clk 0:01:46]}  Nf7 {[%clk 0:00:41]} 29. Nxf7 {[%clk 0:01:41]}  Rxf7 {[%clk 0:00:41]} 30. f5 {[%clk 0:01:41]}  Qd6 {[%clk 0:00:35]} 31. Ne4 {[%clk 0:01:19]}  Qe5 {[%clk 0:00:35]} 32. Ng5 {[%clk 0:01:17]}  Qd4 {[%clk 0:00:33]} 33. Re4 {[%clk 0:01:07]}  hxg5 {[%clk 0:00:27]} 34. Rxd4 {[%clk 0:01:06]}  Bxd4 {[%clk 0:00:26]} 35. Bxg5 {[%clk 0:01:05]}  Rg7 {[%clk 0:00:26]} 36. Qb5 {[%clk 0:00:59]}  Rxg5 {[%clk 0:00:12]} 37. Qe8+ {[%clk 0:00:58]}  Kh7 {[%clk 0:00:12]} 38. Qxe7+ {[%clk 0:00:58]}  Rg7 {[%clk 0:00:09]} 39. f6+ {[%clk 0:00:58]} 1-0

[Event "January 2 Early 2024"]
[Site "https://www.chess.com"]
[Date "2024.01.02"]
[Round "1"]
[White "Blanco Diez, David"]
[Black "Milikow, Elie"]
[Result "1-0"]
[Board "124"]
[TimeControl "180+1"]
[WhiteFideId "32032927"]
[BlackFideId "371281868"]
[WhiteElo "2405"]
[BlackElo "2784"]
[WhiteTeam "ESP"]
[BlackTeam "ISR"]
[WhiteClock "0:00:06"]
[BlackClock "0:00:19"]

1. e4 {[%clk 0:03:00]}  c5 {[%clk 0:02:54]} 2. c3 {[%clk 0:02:59]}  d5 {[%clk 0:02:53]} 3. exd5 {[%clk 0:02:58]}  Qxd5 {[%clk 0:02:54]} 4. d4 {[%clk 0:02:57]}  Nf6 {[%clk 0:02:52]} 5. Nf3 {[%clk 0:02:57]}  e6 {[%clk 0:02:52]} 6. Bd3 {[%clk 0:02:55]}  Nc6 {[%clk 0:02:50]} 7. Be3 {[%clk 0:02:55]}  cxd4 {[%clk 0:02:47]} 8. cxd4 {[%clk 0:02:56]}  Be7 {[%clk 0:02:46]} 9. Nc3 {[%clk 0:02:55]}  Qd8 {[%clk 0:02:47]} 10. a3 {[%clk 0:02:49]}  O-O {[%clk 0:02:47]} 11. O-O {[%clk 0:02:48]}  b6 {[%clk 0:02:47]} 12. Bc2 {[%clk 0:02:48]}  Bb7 {[%clk 0:02:48]} 13. Qd3 {[%clk 0:02:48]}  h6 {[%clk 0:02:46]} 14. Ne4 {[%clk 0:02:42]}  Nxe4 {[%clk 0:02:28]} 15. Qxe4 {[%clk 0:02:40]}  g6 {[%clk 0:02:29]} 16. Bxh6 {[%clk 0:02:37]}  Re8 {[%clk 0:02:24]} 17. Qg4 {[%clk 0:02:36]}  Bf8 {[%clk 0:02:16]} 18. Bg5 {[%clk 0:02:19]}  Qd5 {[%clk 0:02:10]} 19. Be4 {[%clk 0:01:58]}  Qd7 {[%clk 0:02:01]} 20. Bf6 {[%clk 0:01:55]}  Bg7 {[%clk 0:01:57]} 21. Qh4 {[%clk 0:01:46]}  Ne7 {[%clk 0:01:42]} 22. Ng5 {[%clk 0:01:42]}  Kf8 {[%clk 0:01:08]} 23. Qh7 {[%clk 0:01:05]}  Nf5 {[%clk 0:01:00]} 24. Bxg7+ {[%clk 0:01:01]}  Ke7 {[%clk 0:01:00]} 25. Be5 {[%clk 0:00:51]}  Rf8 {[%clk 0:00:56]} 26. Bxf5 {[%clk 0:00:33]}  gxf5 {[%clk 0:00:54]} 27. Qg7 {[%clk 0:00:34]}  Qd5 {[%clk 0:00:53]} 28. Qf6+ {[%clk 0:00:33]}  Kd7 {[%clk 0:00:52]} 29. f3 {[%clk 0:00:33]}  Rac8 {[%clk 0:00:52]} 30. Rac1 {[%clk 0:00:32]}  Qb3 {[%clk 0:00:49]} 31. Rxc8 {[%clk 0:00:28]}  Bxc8 {[%clk 0:00:50]} 32. Nxf7 {[%clk 0:00:26]}  Ba6 {[%clk 0:00:51]} 33. Re1 {[%clk 0:00:15]}  Qd5 {[%clk 0:00:32]} 34. Qg7 {[%clk 0:00:15]}  Re8 {[%clk 0:00:31]} 35. Nd6+ {[%clk 0:00:15]}  Re7 {[%clk 0:00:32]} 36. Qf8 {[%clk 0:00:15]}  Qa5 {[%clk 0:00:27]} 37. Rc1 {[%clk 0:00:14]}  Qd2 {[%clk 0:00:27]} 38. Rc7+ {[%clk 0:00:06]}  Kxc7 {[%clk 0:00:27]} 39. Qxe7+ {[%clk 0:00:06]}  Kc6 {[%clk 0:00:28]} 40. Qe8+ {[%clk 0:00:07]}  Kc7 {[%clk 0:00:20]} 41. Nb5+ {[%clk 0:00:05]}  Kb7 {[%clk 0:00:19]} 42. Qd7+ {[%clk 0:00:05]}  Ka8 {[%clk 0:00:19]} 43. Qxa7# {[%clk 0:00:06]} 1-0

[Event "January 2 Early 2024"]
[Site "https://www.chess.com"]
[Date "2024.01.02"]
[Round "1"]
[White "Korchmar, Vasiliy"]
[Black "Spichkin, Alexander"]
[Result "0-1"]
[Board "125"]
[TimeControl "180+1"]
[WhiteFideId "24131750"]
[BlackFideId "4144074"]
[WhiteElo "2783"]
[BlackElo "2405"]
[WhiteTeam "RUS"]
[BlackTeam "RUS"]
[WhiteClock "0:00:00"]
[BlackClock "0:00:45"]

1. e4 {[%clk 0:03:00]}  e5 {[%clk 0:02:58]} 2. Nf3 {[%clk 0:03:00]}  d5 {[%clk 0:02:58]} 3. exd5 {[%clk 0:02:41]}  e4 {[%clk 0:02:58]} 4. Qe2 {[%clk 0:02:41]}  Nf6 {[%clk 0:02:58]} 5. d3 {[%clk 0:02:35]}  Bb4+ {[%clk 0:02:55]} 6. Bd2 {[%clk 0:02:26]}  O-O {[%clk 0:02:55]} 7. dxe4 {[%clk 0:02:04]}  Re8 {[%clk 0:02:54]} 8. e5 {[%clk 0:01:58]}  Nxd5 {[%clk 0:02:48]} 9. Bxb4 {[%clk 0:01:41]}  Nxb4 {[%clk 0:02:45]} 10. a3 {[%clk 0:01:40]}  N4c6 {[%clk 0:02:36]} 11. Nbd2 {[%clk 0:01:29]}  Bg4 {[%clk 0:02:27]} 12. h3 {[%clk 0:01:28]}  Nd4 {[%clk 0:02:08]} 13. Qd3 {[%clk 0:01:16]}  Bxf3 {[%clk 0:02:01]} 14. Nxf3 {[%clk 0:01:12]}  Nxf3+ {[%clk 0:01:59]} 15. Qxf3 {[%clk 0:01:09]}  Rxe5+ {[%clk 0:02:00]} 16. Be2 {[%clk 0:01:09]}  Nc6 {[%clk 0:01:50]} 17. c3 {[%clk 0:01:02]}  Qe7 {[%clk 0:01:49]} 18. Kf1 {[%clk 0:01:00]}  Re8 {[%clk 0:01:48]} 19. Re1 {[%clk 0:00:57]}  Na5 {[%clk 0:01:47]} 20. Qd3 {[%clk 0:00:33]}  Nb3 {[%clk 0:01:44]} 21. Qd1 {[%clk 0:00:24]}  Nc5 {[%clk 0:01:31]} 22. f3 {[%clk 0:00:20]}  Rd8 {[%clk 0:01:21]} 23. Qc2 {[%clk 0:00:08]}  Nd3 {[%clk 0:01:14]} 24. Rd1 {[%clk 0:00:05]}  Nf4 {[%clk 0:00:56]} 25. Rxd8+ {[%clk 0:00:06]}  Qxd8 {[%clk 0:00:56]} 26. Bc4 {[%clk 0:00:04]}  b5 {[%clk 0:00:51]} 27. Ba2 {[%clk 0:00:03]}  Qe7 {[%clk 0:00:45]} 28. g3 {[%clk 0:00:02]}  Re1+ {[%clk 0:00:45]} 29. Kf2 {[%clk 0:00:00]}  Re2+ {[%clk 0:00:45]} 0-1

[Event "January 2 Early 2024"]
[Site "https://www.chess.com"]
[Date "2024.01.02"]
[Round "1"]
[White "Samaganova, Aleksandra"]
[Black "Alexandre, Anne Shopie Elizabeth"]
[Result "0-1"]
[Board "128"]
[TimeControl "180+1"]
[WhiteFideId "13800221"]
[BlackFideId "11902418"]
[WhiteElo "2403"]
[BlackElo "2780"]
[WhiteTeam "KGZ"]
[BlackTeam "HAI"]
[WhiteClock "0:00:12"]
[BlackClock "0:01:59"]

1. c4 {[%clk 0:03:00]}  Nf6 {[%clk 0:02:58]} 2. Nc3 {[%clk 0:02:58]}  e6 {[%clk 0:02:57]} 3. e4 {[%clk 0:02:57]}  c5 {[%clk 0:02:58]} 4. Nf3 {[%clk 0:02:47]}  Nc6 {[%clk 0:02:57]} 5. e5 {[%clk 0:02:30]}  Ng4 {[%clk 0:02:56]} 6. Qe2 {[%clk 0:02:23]}  Qc7 {[%clk 0:02:50]} 7. Nb5 {[%clk 0:02:15]}  Qb8 {[%clk 0:02:50]} 8. d4 {[%clk 0:02:01]}  a6 {[%clk 0:02:49]} 9. Nd6+ {[%clk 0:01:59]}  Bxd6 {[%clk 0:02:49]} 10. exd6 {[%clk 0:02:00]}  Qxd6 {[%clk 0:02:47]} 11. d5 {[%clk 0:01:58]}  Ne7 {[%clk 0:02:41]} 12. h3 {[%clk 0:01:55]}  Nf6 {[%clk 0:02:40]} 13. dxe6 {[%clk 0:01:39]}  dxe6 {[%clk 0:02:39]} 14. Bg5 {[%clk 0:01:36]}  O-O {[%clk 0:02:36]} 15. Bxf6 {[%clk 0:01:31]}  gxf6 {[%clk 0:02:36]} 16. g3 {[%clk 0:01:24]}  b6 {[%clk 0:02:35]} 17. Bg2 {[%clk 0:01:24]}  Bb7 {[%clk 0:02:35]} 18. Rd1 {[%clk 0:01:20]}  Qc7 {[%clk 0:02:32]} 19. O-O {[%clk 0:01:19]}  Rfd8 {[%clk 0:02:31]} 20. Qc2 {[%clk 0:01:05]}  Rxd1 {[%clk 0:02:26]} 21. Rxd1 {[%clk 0:01:05]}  Rd8 {[%clk 0:02:25]} 22. Re1 {[%clk 0:01:04]}  Bxf3 {[%clk 0:02:24]} 23. Bxf3 {[%clk 0:01:03]}  Rd4 {[%clk 0:02:22]} 24. b3 {[%clk 0:01:01]}  Kg7 {[%clk 0:02:20]} 25. h4 {[%clk 0:00:58]}  Qd6 {[%clk 0:02:20]} 26. Bb7 {[%clk 0:00:51]}  a5 {[%clk 0:02:20]} 27. Re2 {[%clk 0:00:48]}  f5 {[%clk 0:02:17]} 28. Qc3 {[%clk 0:00:47]}  Ng8 {[%clk 0:02:16]} 29. Kg2 {[%clk 0:00:45]}  Nf6 {[%clk 0:02:16]} 30. Qf3 {[%clk 0:00:44]}  Rd3 {[%clk 0:02:14]} 31. Re3 {[%clk 0:00:40]}  Rxe3 {[%clk 0:02:13]} 32. Qxe3 {[%clk 0:00:40]}  h6 {[%clk 0:02:10]} 33. Qc1 {[%clk 0:00:32]}  Qd4 {[%clk 0:02:06]} 34. Qe1 {[%clk 0:00:26]}  Ng4 {[%clk 0:02:05]} 35. Bf3 {[%clk 0:00:23]}  Ne5 {[%clk 0:02:04]} 36. Bb7 {[%clk 0:00:23]}  f4 {[%clk 0:02:00]} 37. gxf4 {[%clk 0:00:18]}  Nd3 {[%clk 0:01:59]} 38. Qe2 {[%clk 0:00:12]}  Nxf4+ {[%clk 0:01:59]} 0-1

[Event "January 2 Early 2024"]
[Site "https://www.chess.com"]
[Date "2024.01.02"]
[Round "1"]
[White "Suyarov, Mukhammadzokhid"]
[Black "Kanter, Eduard"]
[Result "1-0"]
[Board "131"]
[TimeControl "180+1"]
[WhiteFideId "14210495"]
[BlackFideId "4103963"]
[WhiteElo "2775"]
[BlackElo "2401"]
[WhiteTeam "UZB"]
[BlackTeam "RUS"]
[WhiteClock "0:00:52"]
[BlackClock "0:00:39"]

1. e4 {[%clk 0:03:00]}  e5 {[%clk 0:02:57]} 2. Nf3 {[%clk 0:03:00]}  Nc6 {[%clk 0:02:57]} 3. Nc3 {[%clk 0:03:00]}  Nf6 {[%clk 0:02:56]} 4. a3 {[%clk 0:03:00]}  a6 {[%clk 0:02:51]} 5. d4 {[%clk 0:02:56]}  exd4 {[%clk 0:02:51]} 6. Nxd4 {[%clk 0:02:57]}  Bc5 {[%clk 0:02:48]} 7. Nxc6 {[%clk 0:02:34]}  bxc6 {[%clk 0:02:48]} 8. Bd3 {[%clk 0:02:35]}  O-O {[%clk 0:02:42]} 9. O-O {[%clk 0:02:31]}  h6 {[%clk 0:02:34]} 10. e5 {[%clk 0:02:30]}  Nd5 {[%clk 0:02:33]} 11. Qh5 {[%clk 0:02:21]}  Nxc3 {[%clk 0:02:14]} 12. bxc3 {[%clk 0:02:22]}  Qe7 {[%clk 0:02:13]} 13. Bxh6 {[%clk 0:02:07]}  gxh6 {[%clk 0:01:54]} 14. Qxh6 {[%clk 0:02:08]}  f5 {[%clk 0:01:42]} 15. Bc4+ {[%clk 0:02:06]}  Rf7 {[%clk 0:01:42]} 16. Rae1 {[%clk 0:02:01]}  a5 {[%clk 0:01:07]} 17. Qg6+ {[%clk 0:01:43]}  Kf8 {[%clk 0:01:06]} 18. Qh5 {[%clk 0:01:43]}  Ke8 {[%clk 0:00:53]} 19. Rb1 {[%clk 0:01:23]}  Kd8 {[%clk 0:00:52]} 20. Bxf7 {[%clk 0:01:22]}  Ba6 {[%clk 0:00:50]} 21. Rfe1 {[%clk 0:01:09]}  Bxa3 {[%clk 0:00:48]} 22. e6 {[%clk 0:01:03]}  d5 {[%clk 0:00:47]} 23. Qxf5 {[%clk 0:01:00]}  Bd6 {[%clk 0:00:42]} 24. Qg6 {[%clk 0:00:50]}  a4 {[%clk 0:00:41]} 25. Qg8+ {[%clk 0:00:49]}  Qf8 {[%clk 0:00:41]} 26. e7+ {[%clk 0:00:50]}  Bxe7 {[%clk 0:00:41]} 27. Qxf8+ {[%clk 0:00:50]}  Bxf8 {[%clk 0:00:42]} 28. Re8+ {[%clk 0:00:51]}  Kd7 {[%clk 0:00:39]} 29. Rxa8 {[%clk 0:00:52]} 1-0